[Event "Titled Tuesday Blitz July 25 Late 2023"]
[White "only_strong_moves"]
[Black "littlepinkyboy"]
[WhiteElo "2495"]
[BlackElo "2373"]
[Result "1-0"]
[Round "9"]
[TimeControl "180+2"]
[Date "2023.07.25"]
[WhiteClock "0:00:53"]
[BlackClock "0:00:00"]
[Board "77"]

1. d4 {[%clk 0:03:00]}  d5 {[%clk 0:02:58]} 2. Nc3 {[%clk 0:03:01]}  Nf6 {[%clk 0:02:58]} 3. Bf4 {[%clk 0:03:02]}  e6 {[%clk 0:02:53]} 4. Nb5 {[%clk 0:03:00]}  Na6 {[%clk 0:02:53]} 5. e3 {[%clk 0:03:00]}  c6 {[%clk 0:02:53]} 6. Nc3 {[%clk 0:03:01]}  Nc7 {[%clk 0:02:54]} 7. Nf3 {[%clk 0:03:02]}  Bd6 {[%clk 0:02:54]} 8. Ne5 {[%clk 0:03:02]}  O-O {[%clk 0:02:54]} 9. Be2 {[%clk 0:03:03]}  Qe7 {[%clk 0:02:47]} 10. O-O {[%clk 0:03:03]}  Nd7 {[%clk 0:02:46]} 11. Nxd7 {[%clk 0:02:59]}  Bxd7 {[%clk 0:02:43]} 12. Bxd6 {[%clk 0:03:00]}  Qxd6 {[%clk 0:02:44]} 13. f4 {[%clk 0:03:00]}  c5 {[%clk 0:02:43]} 14. Nb1 {[%clk 0:02:55]}  f6 {[%clk 0:02:30]} 15. c3 {[%clk 0:02:54]}  e5 {[%clk 0:02:29]} 16. Na3 {[%clk 0:02:51]}  exd4 {[%clk 0:02:16]} 17. cxd4 {[%clk 0:02:52]}  c4 {[%clk 0:02:11]} 18. Nc2 {[%clk 0:02:50]}  b5 {[%clk 0:02:06]} 19. Qd2 {[%clk 0:02:44]}  a5 {[%clk 0:01:57]} 20. a3 {[%clk 0:02:39]}  f5 {[%clk 0:01:44]} 21. Ne1 {[%clk 0:02:37]}  b4 {[%clk 0:01:34]} 22. Nf3 {[%clk 0:02:35]}  bxa3 {[%clk 0:01:24]} 23. Rxa3 {[%clk 0:02:31]}  a4 {[%clk 0:01:22]} 24. Ne5 {[%clk 0:02:29]}  Nb5 {[%clk 0:01:16]} 25. Raa1 {[%clk 0:02:28]}  Be6 {[%clk 0:01:08]} 26. Qc2 {[%clk 0:02:17]}  a3 {[%clk 0:01:02]} 27. bxa3 {[%clk 0:02:12]}  Rxa3 {[%clk 0:01:00]} 28. Rxa3 {[%clk 0:02:02]}  Qxa3 {[%clk 0:01:01]} 29. Qc1 {[%clk 0:01:44]}  Qxc1 {[%clk 0:00:38]} 30. Rxc1 {[%clk 0:01:45]}  Ra8 {[%clk 0:00:38]} 31. Bf3 {[%clk 0:01:41]}  Ra3 {[%clk 0:00:34]} 32. Kf2 {[%clk 0:01:37]}  Nc3 {[%clk 0:00:33]} 33. Nc6 {[%clk 0:01:34]}  Kf8 {[%clk 0:00:28]} 34. h3 {[%clk 0:01:26]}  Ke8 {[%clk 0:00:24]} 35. g4 {[%clk 0:01:24]}  Kd7 {[%clk 0:00:22]} 36. Ne5+ {[%clk 0:01:22]}  Kd6 {[%clk 0:00:18]} 37. Kg3 {[%clk 0:01:17]}  Ne4+ {[%clk 0:00:08]} 38. Bxe4 {[%clk 0:01:16]}  fxe4 {[%clk 0:00:09]} 39. Kf2 {[%clk 0:01:14]}  Ra2+ {[%clk 0:00:09]} 40. Kg3 {[%clk 0:01:12]}  Re2 {[%clk 0:00:08]} 41. Rc3 {[%clk 0:01:12]}  Bd7 {[%clk 0:00:06]} 42. f5 {[%clk 0:01:07]}  Ba4 {[%clk 0:00:05]} 43. Nf7+ {[%clk 0:01:06]}  Ke7 {[%clk 0:00:05]} 44. Ng5 {[%clk 0:01:06]}  h6 {[%clk 0:00:05]} 45. Ne6 {[%clk 0:01:05]}  g6 {[%clk 0:00:03]} 46. Nf4 {[%clk 0:01:05]}  Re1 {[%clk 0:00:02]} 47. Nxd5+ {[%clk 0:01:06]}  Kd6 {[%clk 0:00:02]} 48. Nb6 {[%clk 0:01:02]}  Bb3 {[%clk 0:00:02]} 49. fxg6 {[%clk 0:01:02]}  Ke6 {[%clk 0:00:03]} 50. d5+ {[%clk 0:00:59]}  Kf6 {[%clk 0:00:03]} 51. Kf4 {[%clk 0:00:53]}  Kxg6 {[%clk 0:00:03]} 52. Nxc4 {[%clk 0:00:53]}  Bxc4 {[%clk 0:00:02]} 53. Rxc4 {[%clk 0:00:54]}  Rh1 {[%clk 0:00:00]} 54. d6 {[%clk 0:00:53]} 1-0


[Site "https://www.chess.com"]

[Event "Titled Tuesday Blitz July 25 Late 2023"]
[White "kripri"]
[Black "Papayan, Oleg"]
[BlackFideId "4193911"]
[WhiteElo "2364"]
[BlackElo "2485"]
[Result "1-0"]
[Round "9"]
[TimeControl "180+2"]
[Date "2023.07.25"]
[WhiteClock "0:01:11"]
[BlackClock "0:00:19"]
[Board "78"]

1. e4 {[%clk 0:03:00]}  d5 {[%clk 0:02:59]} 2. exd5 {[%clk 0:03:00]}  Qxd5 {[%clk 0:03:00]} 3. Nc3 {[%clk 0:03:00]}  Qd8 {[%clk 0:03:00]} 4. Nf3 {[%clk 0:03:01]}  Bf5 {[%clk 0:02:59]} 5. d4 {[%clk 0:03:00]}  e6 {[%clk 0:03:00]} 6. Bc4 {[%clk 0:03:00]}  Be7 {[%clk 0:02:59]} 7. O-O {[%clk 0:02:59]}  Nf6 {[%clk 0:03:00]} 8. Bf4 {[%clk 0:02:56]}  O-O {[%clk 0:02:59]} 9. Qe2 {[%clk 0:02:52]}  c6 {[%clk 0:02:55]} 10. Rad1 {[%clk 0:02:48]}  Nbd7 {[%clk 0:02:55]} 11. Ne5 {[%clk 0:02:48]}  Nb6 {[%clk 0:02:53]} 12. Bd3 {[%clk 0:02:44]}  Qxd4 {[%clk 0:02:43]} 13. Bg5 {[%clk 0:02:11]}  Qc5 {[%clk 0:02:12]} 14. Bxf5 {[%clk 0:01:56]}  exf5 {[%clk 0:02:13]} 15. Rfe1 {[%clk 0:01:42]}  Rfd8 {[%clk 0:02:01]} 16. Nd3 {[%clk 0:01:37]}  Rxd3 {[%clk 0:01:56]} 17. Rxd3 {[%clk 0:01:36]}  Kf8 {[%clk 0:01:34]} 18. Re3 {[%clk 0:01:27]}  Re8 {[%clk 0:01:00]} 19. Bxf6 {[%clk 0:01:13]}  gxf6 {[%clk 0:00:19]} 20. Qh5 {[%clk 0:01:11]} 1-0


[Site "https://www.chess.com"]

[Event "Titled Tuesday Blitz July 25 Late 2023"]
[White "Kirillov, Dmitry"]
[Black "Butolo, Alexandru-Mircea"]
[WhiteFideId "34180572"]
[BlackFideId "1261649"]
[WhiteElo "2466"]
[BlackElo "1880"]
[Result "1-0"]
[Round "9"]
[TimeControl "180+2"]
[Date "2023.07.25"]
[WhiteClock "0:00:50"]
[BlackClock "0:00:02"]
[Board "83"]

1. d4 {[%clk 0:03:00]}  Nf6 {[%clk 0:02:59]} 2. Nf3 {[%clk 0:03:01]}  d5 {[%clk 0:02:58]} 3. Bg5 {[%clk 0:02:58]}  e6 {[%clk 0:02:50]} 4. e3 {[%clk 0:02:58]}  Be7 {[%clk 0:02:43]} 5. Nbd2 {[%clk 0:02:58]}  h6 {[%clk 0:02:40]} 6. Bh4 {[%clk 0:02:58]}  Nbd7 {[%clk 0:02:38]} 7. Bd3 {[%clk 0:02:57]}  b6 {[%clk 0:02:38]} 8. c3 {[%clk 0:02:57]}  Bb7 {[%clk 0:02:37]} 9. O-O {[%clk 0:02:58]}  Ne4 {[%clk 0:02:36]} 10. Bxe7 {[%clk 0:02:54]}  Qxe7 {[%clk 0:02:37]} 11. a4 {[%clk 0:02:53]}  a5 {[%clk 0:02:28]} 12. Qc2 {[%clk 0:02:48]}  f5 {[%clk 0:02:26]} 13. c4 {[%clk 0:02:38]}  c5 {[%clk 0:02:13]} 14. cxd5 {[%clk 0:02:36]}  exd5 {[%clk 0:02:13]} 15. dxc5 {[%clk 0:02:36]}  bxc5 {[%clk 0:02:08]} 16. Bb5 {[%clk 0:02:29]}  O-O {[%clk 0:02:07]} 17. Rac1 {[%clk 0:02:24]}  Rac8 {[%clk 0:02:02]} 18. Rfd1 {[%clk 0:02:23]}  Ne5 {[%clk 0:01:49]} 19. Nxe5 {[%clk 0:02:19]}  Qxe5 {[%clk 0:01:50]} 20. Nf3 {[%clk 0:02:17]}  Qf6 {[%clk 0:01:42]} 21. Qb3 {[%clk 0:02:08]}  Qf7 {[%clk 0:01:41]} 22. Ne5 {[%clk 0:02:03]}  Qe6 {[%clk 0:01:28]} 23. Bd7 {[%clk 0:01:11]}  Qxe5 {[%clk 0:01:27]} 24. Qxb7 {[%clk 0:01:11]}  Rb8 {[%clk 0:00:53]} 25. Qxd5+ {[%clk 0:01:10]}  Qxd5 {[%clk 0:00:53]} 26. Rxd5 {[%clk 0:01:11]}  Rxb2 {[%clk 0:00:54]} 27. Bxf5 {[%clk 0:01:11]}  Nxf2 {[%clk 0:00:32]} 28. Rf1 {[%clk 0:01:10]}  g6 {[%clk 0:00:28]} 29. Bxg6 {[%clk 0:00:54]}  Re2 {[%clk 0:00:17]} 30. Rf5 {[%clk 0:00:50]}  Rxf5 {[%clk 0:00:16]} 31. Bxf5 {[%clk 0:00:51]}  c4 {[%clk 0:00:06]} 32. Rxf2 {[%clk 0:00:50]}  Re1+ {[%clk 0:00:06]} 33. Rf1 {[%clk 0:00:50]}  Rxe3 {[%clk 0:00:07]} 34. Rc1 {[%clk 0:00:51]}  c3 {[%clk 0:00:02]} 35. Kf2 {[%clk 0:00:50]} 1-0


[Site "https://www.chess.com"]

[Event "Titled Tuesday Blitz July 25 Late 2023"]
[White "Graif, William"]
[Black "Ladan, Nicholas"]
[WhiteFideId "2609835"]
[BlackFideId "30918855"]
[WhiteElo "2539"]
[BlackElo "2429"]
[Result "1/2-1/2"]
[Round "9"]
[TimeControl "180+2"]
[Date "2023.07.25"]
[WhiteClock "0:00:05"]
[BlackClock "0:00:02"]
[Board "86"]

1. e4 {[%clk 0:03:00]}  e5 {[%clk 0:02:58]} 2. Nf3 {[%clk 0:02:58]}  Nc6 {[%clk 0:02:58]} 3. d4 {[%clk 0:02:57]}  exd4 {[%clk 0:02:58]} 4. c3 {[%clk 0:02:57]}  d5 {[%clk 0:02:56]} 5. Bd3 {[%clk 0:02:55]}  dxe4 {[%clk 0:02:52]} 6. Bxe4 {[%clk 0:02:55]}  Nf6 {[%clk 0:02:51]} 7. Bxc6+ {[%clk 0:02:54]}  bxc6 {[%clk 0:02:52]} 8. O-O {[%clk 0:02:53]}  Be7 {[%clk 0:02:51]} 9. Nxd4 {[%clk 0:02:44]}  c5 {[%clk 0:02:46]} 10. Nc6 {[%clk 0:02:39]}  Qxd1 {[%clk 0:02:45]} 11. Rxd1 {[%clk 0:02:36]}  Bd6 {[%clk 0:02:42]} 12. Na3 {[%clk 0:02:29]}  Ba6 {[%clk 0:02:02]} 13. c4 {[%clk 0:01:37]}  Kd7 {[%clk 0:01:39]} 14. Na5 {[%clk 0:01:29]}  Rae8 {[%clk 0:01:20]} 15. Be3 {[%clk 0:01:26]}  Kc8 {[%clk 0:01:15]} 16. Rd3 {[%clk 0:01:18]}  Ng4 {[%clk 0:01:13]} 17. h3 {[%clk 0:01:04]}  Nxe3 {[%clk 0:01:12]} 18. fxe3 {[%clk 0:00:59]}  Re4 {[%clk 0:00:57]} 19. Kf2 {[%clk 0:00:54]}  Rhe8 {[%clk 0:00:55]} 20. Nb5 {[%clk 0:00:45]}  Bxb5 {[%clk 0:00:49]} 21. cxb5 {[%clk 0:00:46]}  c4 {[%clk 0:00:44]} 22. Rd4 {[%clk 0:00:16]}  Rxe3 {[%clk 0:00:43]} 23. Nxc4 {[%clk 0:00:15]}  Bc5 {[%clk 0:00:25]} 24. Nxe3 {[%clk 0:00:10]}  Bxd4 {[%clk 0:00:25]} 25. Re1 {[%clk 0:00:11]}  f5 {[%clk 0:00:20]} 26. Kf3 {[%clk 0:00:11]}  Bxb2 {[%clk 0:00:20]} 27. Rb1 {[%clk 0:00:09]}  Bf6 {[%clk 0:00:10]} 28. Nxf5 {[%clk 0:00:09]}  Kb7 {[%clk 0:00:10]} 29. Ng3 {[%clk 0:00:09]}  Kb6 {[%clk 0:00:09]} 30. Ne4 {[%clk 0:00:10]}  Re5 {[%clk 0:00:06]} 31. a4 {[%clk 0:00:10]}  Ka5 {[%clk 0:00:05]} 32. Rc1 {[%clk 0:00:10]}  Kxa4 {[%clk 0:00:05]} 33. Rxc7 {[%clk 0:00:10]}  Kxb5 {[%clk 0:00:05]} 34. Rxa7 {[%clk 0:00:10]}  Rf5+ {[%clk 0:00:05]} 35. Kg4 {[%clk 0:00:10]}  Re5 {[%clk 0:00:04]} 36. Nxf6 {[%clk 0:00:10]}  gxf6 {[%clk 0:00:05]} 37. Rxh7 {[%clk 0:00:10]}  Rg5+ {[%clk 0:00:06]} 38. Kf4 {[%clk 0:00:10]}  Rxg2 {[%clk 0:00:06]} 39. Kf5 {[%clk 0:00:09]}  Rf2+ {[%clk 0:00:04]} 40. Kg6 {[%clk 0:00:10]}  f5 {[%clk 0:00:05]} 41. h4 {[%clk 0:00:10]}  Kc4 {[%clk 0:00:05]} 42. h5 {[%clk 0:00:10]}  f4 {[%clk 0:00:05]} 43. Rf7 {[%clk 0:00:10]}  Kd4 {[%clk 0:00:05]} 44. h6 {[%clk 0:00:10]}  Ke3 {[%clk 0:00:05]} 45. Rf5 {[%clk 0:00:08]}  Rg2+ {[%clk 0:00:03]} 46. Kf6 {[%clk 0:00:05]}  Rh2 {[%clk 0:00:03]} 47. Kg6 {[%clk 0:00:06]}  f3 {[%clk 0:00:03]} 48. h7 {[%clk 0:00:05]}  f2 {[%clk 0:00:03]} 49. Kg7 {[%clk 0:00:03]}  Ke2 {[%clk 0:00:02]} 50. h8=Q {[%clk 0:00:03]}  Rxh8 {[%clk 0:00:02]} 51. Kxh8 {[%clk 0:00:04]}  f1=Q {[%clk 0:00:02]} 52. Rxf1 {[%clk 0:00:05]}  Kxf1 {[%clk 0:00:02]} 1/2-1/2


[Site "https://www.chess.com"]

[Event "Titled Tuesday Blitz July 25 Late 2023"]
[White "Topalov, Aleksandar"]
[Black "Tikhonov, Viacheslav"]
[WhiteFideId "925659"]
[BlackFideId "44196407"]
[WhiteElo "2357"]
[BlackElo "2484"]
[Result "0-1"]
[Round "9"]
[TimeControl "180+2"]
[Date "2023.07.25"]
[WhiteClock "0:00:00"]
[BlackClock "0:00:54"]
[Board "89"]

1. b3 {[%clk 0:03:00]}  Nf6 {[%clk 0:02:50]} 2. Bb2 {[%clk 0:03:01]}  g6 {[%clk 0:02:51]} 3. Bxf6 {[%clk 0:03:00]}  exf6 {[%clk 0:02:51]} 4. c4 {[%clk 0:03:01]}  d5 {[%clk 0:02:52]} 5. cxd5 {[%clk 0:03:00]}  Qxd5 {[%clk 0:02:53]} 6. e3 {[%clk 0:03:00]}  Bf5 {[%clk 0:02:37]} 7. Nc3 {[%clk 0:02:55]}  Qa5 {[%clk 0:02:37]} 8. a3 {[%clk 0:02:53]}  Bd6 {[%clk 0:02:22]} 9. b4 {[%clk 0:02:48]}  Qe5 {[%clk 0:02:19]} 10. Nf3 {[%clk 0:02:43]}  Qe7 {[%clk 0:02:19]} 11. Bc4 {[%clk 0:02:31]}  c6 {[%clk 0:02:18]} 12. O-O {[%clk 0:02:27]}  Nd7 {[%clk 0:02:18]} 13. d4 {[%clk 0:02:25]}  O-O {[%clk 0:02:15]} 14. h3 {[%clk 0:02:21]}  Nb6 {[%clk 0:02:12]} 15. Bb3 {[%clk 0:02:18]}  Rad8 {[%clk 0:02:05]} 16. Re1 {[%clk 0:02:07]}  Be6 {[%clk 0:02:03]} 17. Rc1 {[%clk 0:01:47]}  f5 {[%clk 0:01:59]} 18. Qc2 {[%clk 0:01:32]}  Bxb3 {[%clk 0:01:59]} 19. Qxb3 {[%clk 0:01:31]}  Nd5 {[%clk 0:01:59]} 20. Nxd5 {[%clk 0:01:29]}  cxd5 {[%clk 0:02:00]} 21. g3 {[%clk 0:01:26]}  h5 {[%clk 0:01:56]} 22. h4 {[%clk 0:01:24]}  Qe4 {[%clk 0:01:47]} 23. Nd2 {[%clk 0:01:18]}  Qg4 {[%clk 0:01:46]} 24. Nf1 {[%clk 0:01:13]}  f4 {[%clk 0:01:44]} 25. exf4 {[%clk 0:01:07]}  Bxf4 {[%clk 0:01:43]} 26. f3 {[%clk 0:01:00]}  Qh3 {[%clk 0:01:41]} 27. gxf4 {[%clk 0:01:00]}  Qxh4 {[%clk 0:01:41]} 28. Qe3 {[%clk 0:00:53]}  Rfe8 {[%clk 0:01:41]} 29. Qf2 {[%clk 0:00:52]}  Qxf4 {[%clk 0:01:40]} 30. Rcd1 {[%clk 0:00:30]}  Rc8 {[%clk 0:01:36]} 31. Qg3 {[%clk 0:00:20]}  Qf6 {[%clk 0:01:31]} 32. Qf2 {[%clk 0:00:16]}  Rxe1 {[%clk 0:01:29]} 33. Rxe1 {[%clk 0:00:16]}  Rc4 {[%clk 0:01:29]} 34. Rd1 {[%clk 0:00:14]}  Rc3 {[%clk 0:01:26]} 35. Kg2 {[%clk 0:00:14]}  Rxa3 {[%clk 0:01:25]} 36. Qg3 {[%clk 0:00:12]}  Ra2+ {[%clk 0:01:24]} 37. Kg1 {[%clk 0:00:12]}  h4 {[%clk 0:01:13]} 38. Qg4 {[%clk 0:00:12]}  Qe7 {[%clk 0:01:12]} 39. Qc8+ {[%clk 0:00:03]}  Kg7 {[%clk 0:01:11]} 40. Qg4 {[%clk 0:00:03]}  Qe2 {[%clk 0:01:10]} 41. Rc1 {[%clk 0:00:02]}  Ra3 {[%clk 0:00:54]} 42. Nh2 {[%clk 0:00:01]}  Qe3+ {[%clk 0:00:54]} 43. Kg2 {[%clk 0:00:01]}  Ra2+ {[%clk 0:00:54]} 44. Kh3 {[%clk 0:00:00]}  Qxc1 {[%clk 0:00:54]} 0-1


[Site "https://www.chess.com"]

[Event "Titled Tuesday Blitz July 25 Late 2023"]
[White "Liu, Casper"]
[Black "Santos, Rafael Ventura Dos"]
[WhiteFideId "1454153"]
[BlackFideId "2122227"]
[WhiteElo "2470"]
[BlackElo "2317"]
[Result "1-0"]
[Round "9"]
[TimeControl "180+2"]
[Date "2023.07.25"]
[WhiteClock "0:01:08"]
[BlackClock "0:01:10"]
[Board "90"]

1. e4 {[%clk 0:03:00]}  c5 {[%clk 0:02:59]} 2. d4 {[%clk 0:03:00]}  cxd4 {[%clk 0:02:59]} 3. Qxd4 {[%clk 0:03:01]}  Nc6 {[%clk 0:02:58]} 4. Qe3 {[%clk 0:03:02]}  Nf6 {[%clk 0:02:55]} 5. Nc3 {[%clk 0:03:02]}  d6 {[%clk 0:02:49]} 6. Bd2 {[%clk 0:03:03]}  g6 {[%clk 0:02:48]} 7. O-O-O {[%clk 0:03:03]}  Bg7 {[%clk 0:02:48]} 8. f3 {[%clk 0:03:04]}  O-O {[%clk 0:02:47]} 9. h4 {[%clk 0:03:04]}  h5 {[%clk 0:02:45]} 10. Nge2 {[%clk 0:03:05]}  Ne5 {[%clk 0:02:42]} 11. Nf4 {[%clk 0:03:05]}  Bh6 {[%clk 0:02:36]} 12. Qf2 {[%clk 0:02:49]}  Bd7 {[%clk 0:02:27]} 13. g4 {[%clk 0:02:48]}  hxg4 {[%clk 0:02:27]} 14. h5 {[%clk 0:02:48]}  Bxf4 {[%clk 0:02:22]} 15. Bxf4 {[%clk 0:02:40]}  Nxf3 {[%clk 0:02:20]} 16. hxg6 {[%clk 0:02:34]}  fxg6 {[%clk 0:02:20]} 17. Bc4+ {[%clk 0:02:31]}  e6 {[%clk 0:02:18]} 18. Rxd6 {[%clk 0:02:26]}  Qa5 {[%clk 0:02:08]} 19. e5 {[%clk 0:02:20]}  Nd5 {[%clk 0:02:05]} 20. Nxd5 {[%clk 0:01:49]}  exd5 {[%clk 0:01:55]} 21. Bxd5+ {[%clk 0:01:49]}  Qxd5 {[%clk 0:01:45]} 22. Rxd5 {[%clk 0:01:49]}  Bc6 {[%clk 0:01:42]} 23. Rd6 {[%clk 0:01:32]}  Rxf4 {[%clk 0:01:31]} 24. Rxg6+ {[%clk 0:01:28]}  Kf7 {[%clk 0:01:31]} 25. Rd6 {[%clk 0:01:21]}  Kg7 {[%clk 0:01:15]} 26. Qe3 {[%clk 0:01:14]}  Raf8 {[%clk 0:01:13]} 27. Qd3 {[%clk 0:01:09]}  Ng5 {[%clk 0:01:10]} 28. Qg6# {[%clk 0:01:08]} 1-0


[Site "https://www.chess.com"]

[Event "Titled Tuesday Blitz July 25 Late 2023"]
[White "AndresDelgado77"]
[Black "Perske, Thore"]
[BlackFideId "12902195"]
[WhiteElo "2334"]
[BlackElo "2462"]
[Result "0-1"]
[Round "9"]
[TimeControl "180+2"]
[Date "2023.07.25"]
[WhiteClock "0:00:00"]
[BlackClock "0:00:36"]
[Board "91"]

1. e4 {[%clk 0:03:00]}  e6 {[%clk 0:03:00]} 2. d4 {[%clk 0:02:58]}  d5 {[%clk 0:03:00]} 3. e5 {[%clk 0:02:53]}  c5 {[%clk 0:03:00]} 4. c3 {[%clk 0:02:48]}  Nc6 {[%clk 0:03:00]} 5. Nf3 {[%clk 0:02:44]}  Bd7 {[%clk 0:03:01]} 6. Bd3 {[%clk 0:02:38]}  cxd4 {[%clk 0:03:01]} 7. a3 {[%clk 0:02:36]}  dxc3 {[%clk 0:02:55]} 8. Nxc3 {[%clk 0:02:35]}  Nge7 {[%clk 0:02:40]} 9. Bg5 {[%clk 0:02:31]}  a6 {[%clk 0:02:40]} 10. O-O {[%clk 0:02:27]}  h6 {[%clk 0:02:34]} 11. Bf4 {[%clk 0:02:24]}  Ng6 {[%clk 0:02:19]} 12. Bg3 {[%clk 0:02:17]}  Be7 {[%clk 0:02:16]} 13. Re1 {[%clk 0:02:03]}  O-O {[%clk 0:02:15]} 14. Rc1 {[%clk 0:01:55]}  Rc8 {[%clk 0:02:01]} 15. b4 {[%clk 0:01:50]}  Nh4 {[%clk 0:01:56]} 16. Nxh4 {[%clk 0:01:43]}  Bxh4 {[%clk 0:01:57]} 17. Qg4 {[%clk 0:01:42]}  Bxg3 {[%clk 0:01:51]} 18. hxg3 {[%clk 0:01:41]}  Qg5 {[%clk 0:01:51]} 19. Qe2 {[%clk 0:01:41]}  Nd4 {[%clk 0:01:39]} 20. Qb2 {[%clk 0:01:25]}  Bb5 {[%clk 0:01:32]} 21. Bxb5 {[%clk 0:01:10]}  Nxb5 {[%clk 0:01:31]} 22. Nxb5 {[%clk 0:01:05]}  axb5 {[%clk 0:01:32]} 23. Rc5 {[%clk 0:01:06]}  Rc6 {[%clk 0:01:12]} 24. Rxb5 {[%clk 0:01:01]}  Rfc8 {[%clk 0:01:12]} 25. Rc5 {[%clk 0:00:48]}  Rxc5 {[%clk 0:01:05]} 26. bxc5 {[%clk 0:00:48]}  Rxc5 {[%clk 0:01:05]} 27. Qxb7 {[%clk 0:00:48]}  Qd2 {[%clk 0:01:03]} 28. Qb8+ {[%clk 0:00:45]}  Kh7 {[%clk 0:01:02]} 29. Qb1+ {[%clk 0:00:45]}  Rc2 {[%clk 0:00:44]} 30. Rf1 {[%clk 0:00:32]}  d4 {[%clk 0:00:42]} 31. a4 {[%clk 0:00:29]}  d3 {[%clk 0:00:42]} 32. Qb3 {[%clk 0:00:23]}  Qe2 {[%clk 0:00:37]} 33. a5 {[%clk 0:00:00]}  Qxf1+ {[%clk 0:00:36]} 0-1


[Site "https://www.chess.com"]

[Event "Titled Tuesday Blitz July 25 Late 2023"]
[White "Manon-og, Ramon Jr."]
[Black "Golubev, Mikhail"]
[WhiteFideId "5200776"]
[BlackFideId "14100983"]
[WhiteElo "2310"]
[BlackElo "2530"]
[Result "0-1"]
[Round "9"]
[TimeControl "180+2"]
[Date "2023.07.25"]
[WhiteClock "0:00:43"]
[BlackClock "0:00:16"]
[Board "94"]

1. d4 {[%clk 0:02:56]}  Nf6 {[%clk 0:02:59]} 2. c4 {[%clk 0:02:55]}  d6 {[%clk 0:02:59]} 3. Nc3 {[%clk 0:02:50]}  g6 {[%clk 0:02:59]} 4. e4 {[%clk 0:02:50]}  Bg7 {[%clk 0:02:59]} 5. f3 {[%clk 0:02:50]}  O-O {[%clk 0:02:59]} 6. Nge2 {[%clk 0:02:49]}  a6 {[%clk 0:02:58]} 7. Bg5 {[%clk 0:02:47]}  c6 {[%clk 0:02:54]} 8. Qd2 {[%clk 0:02:47]}  b5 {[%clk 0:02:53]} 9. b3 {[%clk 0:02:46]}  Nbd7 {[%clk 0:02:45]} 10. Nc1 {[%clk 0:02:32]}  c5 {[%clk 0:02:38]} 11. d5 {[%clk 0:02:25]}  b4 {[%clk 0:02:37]} 12. Na4 {[%clk 0:02:14]}  Nxe4 {[%clk 0:02:36]} 13. fxe4 {[%clk 0:02:15]}  Bxa1 {[%clk 0:02:36]} 14. Bd3 {[%clk 0:02:11]}  Nb6 {[%clk 0:02:29]} 15. O-O {[%clk 0:02:09]}  Nxa4 {[%clk 0:02:26]} 16. bxa4 {[%clk 0:02:08]}  Bc3 {[%clk 0:02:10]} 17. Qf4 {[%clk 0:02:04]}  Bg7 {[%clk 0:02:03]} 18. Qh4 {[%clk 0:01:55]}  f6 {[%clk 0:02:03]} 19. Be3 {[%clk 0:01:40]}  e5 {[%clk 0:02:00]} 20. dxe6 {[%clk 0:01:38]}  Bxe6 {[%clk 0:02:00]} 21. Ne2 {[%clk 0:01:33]}  f5 {[%clk 0:01:56]} 22. Qh3 {[%clk 0:01:25]}  Qd7 {[%clk 0:01:28]} 23. Nf4 {[%clk 0:01:23]}  Bd4 {[%clk 0:00:38]} 24. Bxd4 {[%clk 0:01:19]}  cxd4 {[%clk 0:00:39]} 25. Nxe6 {[%clk 0:01:08]}  Qxe6 {[%clk 0:00:38]} 26. Kh1 {[%clk 0:01:05]}  Rae8 {[%clk 0:00:26]} 27. exf5 {[%clk 0:01:03]}  gxf5 {[%clk 0:00:26]} 28. Qg3+ {[%clk 0:01:01]}  Kh8 {[%clk 0:00:25]} 29. Qf4 {[%clk 0:01:00]}  Qe3 {[%clk 0:00:24]} 30. Qf3 {[%clk 0:00:53]}  Qxf3 {[%clk 0:00:23]} 31. gxf3 {[%clk 0:00:53]}  Re3 {[%clk 0:00:22]} 32. Bc2 {[%clk 0:00:52]}  d3 {[%clk 0:00:20]} 33. Bb3 {[%clk 0:00:51]}  Rfe8 {[%clk 0:00:19]} 34. Kg2 {[%clk 0:00:51]}  Re1 {[%clk 0:00:18]} 35. Rf2 {[%clk 0:00:51]}  R8e2 {[%clk 0:00:17]} 36. Rxe2 {[%clk 0:00:47]}  Rxe2+ {[%clk 0:00:16]} 37. Kf1 {[%clk 0:00:43]}  Rxh2 {[%clk 0:00:16]} 0-1


[Site "https://www.chess.com"]

[Event "Titled Tuesday Blitz July 25 Late 2023"]
[White "Doluhanova, Evgeniya"]
[Black "ZugZwang1201"]
[WhiteFideId "14112035"]
[WhiteElo "2271"]
[BlackElo "2460"]
[Result "0-1"]
[Round "9"]
[TimeControl "180+2"]
[Date "2023.07.25"]
[WhiteClock "0:00:03"]
[BlackClock "0:00:07"]
[Board "98"]

1. e4 {[%clk 0:02:48]}  c5 {[%clk 0:03:00]} 2. Nf3 {[%clk 0:02:41]}  e6 {[%clk 0:03:00]} 3. Nc3 {[%clk 0:02:38]}  a6 {[%clk 0:03:00]} 4. d4 {[%clk 0:02:37]}  cxd4 {[%clk 0:03:01]} 5. Nxd4 {[%clk 0:02:38]}  Qc7 {[%clk 0:03:02]} 6. a3 {[%clk 0:02:37]}  Nf6 {[%clk 0:03:02]} 7. Bd3 {[%clk 0:02:37]}  b5 {[%clk 0:03:01]} 8. Be3 {[%clk 0:02:36]}  Bb7 {[%clk 0:03:02]} 9. f4 {[%clk 0:02:35]}  h5 {[%clk 0:02:59]} 10. h3 {[%clk 0:02:34]}  b4 {[%clk 0:02:48]} 11. axb4 {[%clk 0:02:27]}  Bxb4 {[%clk 0:02:49]} 12. O-O {[%clk 0:01:53]}  Bxc3 {[%clk 0:02:40]} 13. bxc3 {[%clk 0:01:53]}  Bxe4 {[%clk 0:02:40]} 14. Bxe4 {[%clk 0:01:43]}  Nxe4 {[%clk 0:02:41]} 15. Nb5 {[%clk 0:01:42]}  Qc6 {[%clk 0:02:32]} 16. Nd4 {[%clk 0:01:27]}  Qxc3 {[%clk 0:02:28]} 17. Rf3 {[%clk 0:01:26]}  d5 {[%clk 0:02:16]} 18. f5 {[%clk 0:01:15]}  e5 {[%clk 0:02:02]} 19. Nb3 {[%clk 0:00:57]}  Qc6 {[%clk 0:01:39]} 20. Na5 {[%clk 0:00:55]}  Qd7 {[%clk 0:01:26]} 21. c4 {[%clk 0:00:54]}  d4 {[%clk 0:01:21]} 22. Bc1 {[%clk 0:00:45]}  Nf6 {[%clk 0:00:54]} 23. Bg5 {[%clk 0:00:42]}  Nc6 {[%clk 0:00:52]} 24. Nb3 {[%clk 0:00:32]}  Ne4 {[%clk 0:00:40]} 25. Bc1 {[%clk 0:00:27]}  f6 {[%clk 0:00:26]} 26. Qc2 {[%clk 0:00:20]}  Nd6 {[%clk 0:00:15]} 27. Nc5 {[%clk 0:00:19]}  Qc8 {[%clk 0:00:14]} 28. Ne6 {[%clk 0:00:18]}  Nxf5 {[%clk 0:00:13]} 29. Qxf5 {[%clk 0:00:17]}  Kf7 {[%clk 0:00:10]} 30. Ng5+ {[%clk 0:00:16]}  Kg8 {[%clk 0:00:11]} 31. Ne6 {[%clk 0:00:15]}  Nd8 {[%clk 0:00:09]} 32. Nxd8 {[%clk 0:00:14]}  Qxf5 {[%clk 0:00:10]} 33. Rxf5 {[%clk 0:00:14]}  Rxd8 {[%clk 0:00:11]} 34. Rxa6 {[%clk 0:00:11]}  Rc8 {[%clk 0:00:11]} 35. Ra4 {[%clk 0:00:11]}  Kf7 {[%clk 0:00:11]} 36. Kf2 {[%clk 0:00:09]}  Ke6 {[%clk 0:00:11]} 37. Rf3 {[%clk 0:00:09]}  Rc6 {[%clk 0:00:11]} 38. Bd2 {[%clk 0:00:08]}  Rhc8 {[%clk 0:00:11]} 39. Rb3 {[%clk 0:00:07]}  Rxc4 {[%clk 0:00:11]} 40. Rxc4 {[%clk 0:00:08]}  Rxc4 {[%clk 0:00:11]} 41. Rb6+ {[%clk 0:00:08]}  Kf5 {[%clk 0:00:11]} 42. Rb7 {[%clk 0:00:08]}  g5 {[%clk 0:00:11]} 43. Rb6 {[%clk 0:00:05]}  Rc2 {[%clk 0:00:11]} 44. Ke2 {[%clk 0:00:05]}  Ra2 {[%clk 0:00:07]} 45. g4+ {[%clk 0:00:04]}  hxg4 {[%clk 0:00:06]} 46. hxg4+ {[%clk 0:00:05]}  Kxg4 {[%clk 0:00:05]} 47. Rxf6 {[%clk 0:00:05]}  e4 {[%clk 0:00:06]} 48. Kd1 {[%clk 0:00:05]}  e3 {[%clk 0:00:05]} 49. Be1 {[%clk 0:00:05]}  d3 {[%clk 0:00:04]} 50. Rc6 {[%clk 0:00:04]}  Ra1+ {[%clk 0:00:04]} 51. Rc1 {[%clk 0:00:04]}  Rxc1+ {[%clk 0:00:05]} 52. Kxc1 {[%clk 0:00:04]}  d2+ {[%clk 0:00:05]} 53. Bxd2 {[%clk 0:00:05]}  exd2+ {[%clk 0:00:06]} 54. Kxd2 {[%clk 0:00:06]}  Kf3 {[%clk 0:00:06]} 55. Ke1 {[%clk 0:00:06]}  Kg2 {[%clk 0:00:07]} 56. Ke2 {[%clk 0:00:03]}  g4 {[%clk 0:00:07]} 0-1


[Site "https://www.chess.com"]